bitfinex/quotes_SOLUSD_20241007
["timestamp","ask_amount","ask_price","bid_price","bid_amount"]
[1728310956510,0.1,150.59,150.57,50.0]
[1728310956730,0.1,150.59,150.58,20.0]
[1728310956921,18.76143382,150.78,150.58,20.0]
[1728310956922,90.77731437,150.87,150.64,50.0]
[1728310957108,6.6336,150.75,150.68,20.0]
[1728310957314,16.5772,150.81,150.69,1.32670364]
[1728310957633,16.5772,150.81,150.7,0.25098]
[1728310957808,6.93578353,150.86,150.72,0.25098]
[1728310957809,16.5736,150.85,150.72,0.25098]
[1728310958009,6.6317,150.8,150.73,1.32626914]
[1728310958211,6.6334,150.75,150.7,20.0]
[1728310958435,6.633,150.77,150.72,0.12549]
[1728310958745,16.5759,150.83,150.72,1.45192452]
[1728310958906,6.6322,150.78,150.72,0.12549]
[1728310959122,6.6322,150.78,150.7,20.0]
[1728310959123,16.5759,150.83,150.7,20.0]
[1728310959330,16.5794,150.79,150.72,1.32636693]
[1728310959562,6.6339,150.74,150.69,1.32666535]
[1728310959724,6.6335,150.75,150.7,1.32671964]
[1728310960047,16.5794,150.79,150.71,1.32662541]
[1728310960235,6.6342,150.74,150.71,1.32662541]
[1728310960440,6.6342,150.74,150.68,20.0]
[1728310960441,16.5825,150.77,150.68,20.0]
[1728310960645,6.6357,150.7,150.65,50.0]
[1728310960946,6.6357,150.7,150.63,50.0]
[1728310961151,6.6366,150.68,150.64,1.3270162]
[1728310961320,6.636,150.7,150.63,50.0]
[1728310961522,16.5849,150.74,150.64,1.32707714]
[1728310961824,16.5849,150.74,150.63,50.0]
[1728310962024,33.1712,150.74,150.64,1.3271343]
[1728310962348,33.1712,150.74,150.6,16.0468]
[1728310962349,16.5903,150.7,150.6,16.0468]
[1728310962546,6.6378,150.66,150.61,1.32736376]
[1728310962928,6.6378,150.66,150.61,1.32735121]
[1728310963130,6.638,150.65,150.6,16.0468]
[1728310963328,16.5903,150.7,150.6,16.0468]
[1728310963536,6.6392,150.63,150.61,1.32740452]
[1728310963745,16.5925,150.68,150.58,1.32759527]
[1728310963929,6.6397,150.61,150.58,1.32759527]
[1728310964258,6.6414,150.57,150.53,50.0]
[1728310964428,6.641,150.58,150.53,50.0]
[1728310964623,0.12549,150.69,150.52,0.4201468]
[1728310964624,16.6,150.61,150.52,0.4201468]
[1728310964933,16.6026,150.58,150.52,0.4201468]
[1728310965132,6.6431,150.53,150.52,0.4201468]
[1728310966148,16.6026,150.58,150.52,0.4201468]
[1728310966328,6.6431,150.53,150.52,0.4201468]
[1728310966529,6.6427,150.54,150.52,0.4201468]
[1728310966741,6.6418,150.57,150.52,0.4201468]
[1728310966941,16.5988,150.62,150.52,0.4201468]
[1728310967263,16.6016,150.59,150.52,0.4201468]
[1728310967554,6.6429,150.54,150.52,0.4201468]
[1728310967756,16.6016,150.59,150.52,0.4201468]
[1728310967929,6.2128,150.65,150.52,0.4201468]
[1728310968136,16.598,150.63,150.53,1.32819823]
[1728310968439,6.6427,150.55,150.52,0.4201468]
[1728310968935,16.6002,150.61,150.52,0.4201468]
[1728310969450,6.6419,150.56,150.52,0.4201468]
[1728310969629,6.6419,150.56,150.52,1.74848495]
[1728310969830,6.6419,150.56,150.52,0.4201468]
[1728310970238,6.6414,150.57,150.52,0.4201468]
[1728310970438,6.2128,150.65,150.53,0.12549]
[1728310970662,6.64,150.61,150.53,21.57898867]
[1728310970963,6.6403,150.6,150.53,21.57898867]
[1728310971254,6.6396,150.62,150.55,0.25098]
[1728310971456,6.6396,150.62,150.56,1.32780515]
[1728310971658,6.6396,150.62,150.55,0.25098]
[1728310972559,16.595,150.65,150.55,0.12549]
[1728310972756,16.595,150.65,150.55,21.57875434]
[1728310973069,6.6395,150.62,150.56,1.32779763]
[1728310973235,6.5581,150.7,150.55,20.25098]
[1728310973236,6.6396,150.61,150.55,20.0]
[1728310973557,6.5581,150.7,150.56,1.32799319]
[1728310973558,6.6414,150.58,150.56,1.32799319]
[1728310973767,6.6405,150.59,150.53,20.0]
[1728310974152,6.6402,150.6,150.54,0.12549]
[1728310974458,6.6405,150.59,150.53,20.0]
[1728310974841,6.6405,150.59,150.54,0.12549]
[1728310975051,33.178,150.71,150.52,56.9078368]
[1728310975052,16.5917,150.68,150.57,20.25098]
[1728310975252,33.178,150.71,150.58,1.32759292]
[1728310975456,6.6374,150.66,150.59,0.12549]
[1728310975636,16.5808,150.78,150.65,20.25098]
[1728310975840,6.2304,150.86,150.68,20.25098]
[1728310975841,6.633,150.76,150.68,20.25098]
[1728310976175,6.633,150.76,150.69,1.32667234]
[1728310976540,16.5772,150.81,150.7,20.0]
[1728310976760,6.2304,150.86,150.71,1.3265702]
[1728310976966,6.2304,150.86,150.68,20.25098]
[1728310976967,16.5739,150.84,150.68,20.25098]
[1728310977347,16.5771,150.81,150.68,0.25098]
[1728310977943,6.634,150.74,150.66,0.12549]
[1728310978145,6.634,150.74,150.66,0.25098]
[1728310978376,16.5807,150.78,150.67,20.0]
[1728310978757,6.6361,150.7,150.6,72.554]
[1728310979082,6.6357,150.7,150.6,72.554]
[1728310979371,33.1555,150.81,150.65,50.0]
[1728310979372,16.5806,150.78,150.65,50.0]
[1728310979559,16.5806,150.78,150.62,55.1424647]
[1728310979560,16.5806,150.78,150.63,50.0]
[1728310979739,20.0,150.8,150.62,50.0]
[1728310979944,6.6352,150.71,150.62,50.0]
[1728310980145,6.6348,150.73,150.63,1.32711641]
[1728310980466,6.2304,150.86,150.67,0.12549]
[1728310980668,6.6335,150.75,150.67,1.45210111]
[1728310980962,16.5791,150.8,150.67,0.12549]
[1728310981280,16.5791,150.8,150.67,20.12549]
[1728310981662,7.03506145,150.89,150.69,50.0]
[1728310981663,16.5749,150.84,150.69,50.0]
[1728310981980,16.5749,150.84,150.72,20.25098]
[1728310982144,6.6314,150.8,150.72,20.25098]
[1728310982347,6.6309,150.81,150.74,0.12549]
[1728310982542,7.03506145,150.89,150.75,1.32623512]
[1728310982744,6.6313,150.8,150.72,20.25098]
[1728310982978,6.6294,150.85,150.73,1.32633139]
[1728310983148,16.5714,150.87,150.73,0.12549]
[1728310983348,6.6314,150.8,150.73,0.12549]
[1728310983852,6.6319,150.79,150.73,0.12549]
[1728310984266,6.6313,150.8,150.73,0.12549]
[1728310984755,16.5735,150.85,150.73,0.12549]
[1728310984965,6.6321,150.79,150.73,0.12549]
[1728310985254,6.6331,150.76,150.7,20.0]
[1728310985567,16.578,150.81,150.69,20.0]
[1728310985767,6.6335,150.75,150.69,20.0]
[1728310986140,16.578,150.81,150.68,21.9692]
[1728310986141,6.6328,150.77,150.68,21.9692]
[1728310986347,16.578,150.81,150.68,21.9692]
[1728310986669,6.6331,150.76,150.68,21.9692]
[1728310987053,6.6335,150.75,150.68,21.9692]
[1728310987365,6.6335,150.75,150.69,23.776884]
[1728310987575,16.578,150.81,150.71,23.776884]
[1728310987747,6.6334,150.76,150.71,23.776884]
[1728310988077,6.3257,150.88,150.76,23.776884]
[1728310988446,0.1,150.89,150.78,23.776884]
[1728310988447,6.6282,150.87,150.78,23.776884]
[1728310989073,0.1,150.89,150.78,23.776884]
[1728310989277,6.6285,150.87,150.79,1.32590269]
[1728310989448,6.7277,150.89,150.8,23.776884]
[1728310989645,6.6279,150.88,150.8,23.776884]
[1728310990275,6.6279,150.88,150.81,1.3258282]
[1728310990770,6.6279,150.88,150.8,23.776884]
[1728310990771,0.1,150.89,150.82,50.25098]
[1728310990951,0.1,150.89,150.83,1.32540704]
[1728310991161,0.1,150.89,150.82,50.25098]
[1728310991359,0.1,150.89,150.81,20.12549]
[1728310991774,0.1,150.89,150.81,70.12549]
[1728310991957,0.1,150.89,150.82,1.45099368]
[1728310992159,0.1,150.89,150.83,0.12549]
[1728310992366,0.1,150.89,150.83,1.45089815]
[1728310992678,0.1,150.89,150.82,0.12549]
[1728310992679,0.1,150.89,150.82,0.25098]
[1728310993877,0.1,150.89,150.81,20.0]
[1728310994249,0.1,150.89,150.8,23.776884]
[1728310994250,0.1,150.89,150.8,20.0]
[1728310994565,0.1,150.89,150.82,1.32565333]
[1728310994956,0.1,150.89,150.82,20.0]
[1728310995571,0.1,150.89,150.83,1.32558943]
[1728310995874,0.1,150.89,150.8,20.0]
[1728310996066,6.7274,150.89,150.8,20.0]
[1728310996273,6.7274,150.89,150.81,1.3256623]
[1728310996447,6.7276,150.89,150.79,66.6582]
[1728310996654,0.1,150.89,150.81,50.0]
[1728310996885,0.1,150.89,150.83,50.0]
[1728310997176,0.1,150.89,150.88,6.0755]
[1728310997757,0.1,150.89,150.88,27.65128995]
[1728310997950,0.1,150.99,150.91,20.25098]
[1728310998155,0.1,150.99,150.92,1.32468266]
[1728310998677,0.1,150.99,150.91,20.25098]
[1728310999060,6.6239,150.97,150.91,20.0]
[1728310999260,6.6238,150.97,150.89,20.0]
[1728310999476,0.1,150.99,150.89,20.0]
[1728310999677,6.6237,150.98,150.89,20.0]
[1728310999972,6.6238,150.97,150.89,20.0]
[1728311000152,0.1,150.99,150.9,1.45039569]
[1728311000358,0.1,150.99,150.9,0.12549]
[1728311000554,0.1,150.99,150.92,0.12549]
[1728311001056,6.7233,150.99,150.9,0.25098]
[1728311001257,6.7233,150.99,150.9,1.45024704]
[1728311001576,0.1,150.99,150.91,0.12549]
[1728311001779,0.1,150.99,150.92,20.12549]
[1728311001958,0.1,150.99,150.94,0.12549]
[1728311002784,0.1,150.99,150.94,20.12549]
[1728311002984,0.1,150.99,150.94,21.44988524]
[1728311003185,0.1,150.99,150.96,50.0]
[1728311003480,0.1,150.99,150.98,50.25098]
[1728311003660,0.1,150.99,150.98,0.25098]
[1728311004063,0.1,150.99,150.98,0.12549]
[1728311004257,0.1,150.99,150.98,1.5753342]
[1728311004469,0.1,150.99,150.98,0.25098]
[1728311004666,0.3334,151.0,150.99,20.25098]
[1728311004864,0.1,151.09,151.03,0.12549]
[1728311005357,0.1,151.09,151.03,0.25098]
[1728311005571,0.1,151.09,151.03,0.12549]
[1728311005779,6.7185,151.09,151.02,0.12549]
[1728311006075,6.7185,151.09,150.99,20.0]
[1728311006076,0.1,151.09,150.99,20.0]
[1728311006287,0.1,151.09,151.0,1.32410959]
[1728311006453,6.6202,151.06,150.98,70.0]
[1728311006652,6.6202,151.06,150.98,20.0]
[1728311006877,6.6203,151.05,150.98,20.0]
[1728311007063,6.6203,151.05,150.99,1.32419699]
[1728311007263,6.6198,151.06,150.98,20.0]
[1728311007466,6.6208,151.04,150.98,20.0]
[1728311007675,6.6193,151.08,150.99,21.32416551]
[1728311007891,0.1,151.09,151.0,50.0]
[1728311008067,6.7185,151.09,151.01,20.0]
[1728311008273,0.1,151.09,151.02,50.0]
[1728311008480,0.1,151.09,151.01,20.0]
[1728311008676,0.1,151.09,150.98,50.0]
[1728311008868,0.1,151.09,151.0,50.12549]
[1728311009071,0.1,151.09,151.02,50.12549]
[1728311009281,0.1,151.09,151.06,50.0]
[1728311009591,0.1,151.09,151.08,0.12549]
[1728311009962,0.1,151.09,151.07,26.2396]
[1728311010162,0.1,151.09,151.08,1.3234351]
[1728311010363,0.1,151.09,151.08,71.5744151]
[1728311010796,0.1,151.09,151.08,70.25098]
[1728311011085,0.1,151.09,151.08,20.0]
[1728311011269,0.1,151.09,151.08,1.32336641]
[1728311011668,0.1,151.09,151.08,1.32326778]
[1728311011876,0.1,151.09,151.0,4.08413828]
[1728311011877,0.1,151.09,151.02,6.5749]
[1728311012068,0.1,151.09,151.03,1.32360511]
[1728311012509,0.1,151.09,151.04,50.0]
[1728311012786,0.1,151.09,151.05,1.32349787]
[1728311013301,0.1,151.09,151.02,6.5749]
[1728311014166,6.6195,151.07,151.0,16.2431]
[1728311014369,0.1,151.09,151.01,1.32389044]
[1728311014576,0.1,151.09,151.04,50.0]
[1728311014867,0.1,151.09,151.05,1.32344363]
[1728311015075,6.7185,151.09,151.02,50.0]
[1728311015282,0.1,151.09,151.0,66.2431]
[1728311015599,0.1,151.09,150.98,56.6418]
[1728311015976,6.7188,151.09,151.0,50.0]
[1728311016181,6.6194,151.08,150.98,56.6418]
[1728311016498,16.0438,151.09,150.98,6.6418]
[1728311016668,6.6207,151.05,150.96,50.0]
[1728311017070,6.1122,151.08,150.96,50.0]
[1728311017270,6.1122,151.08,150.98,50.0]
[1728311017494,16.0438,151.09,150.99,1.32384048]
[1728311017670,16.0438,151.09,150.95,50.0]
[1728311017671,6.6215,151.03,150.95,50.0]
[1728311017872,6.6217,151.02,150.94,6.0455]
[1728311018072,16.5497,151.07,150.94,6.0455]
[1728311018481,6.6212,151.03,150.95,1.32445199]
[1728311018685,6.6213,151.03,150.95,1.32445199]
[1728311018890,6.6208,151.04,150.94,56.0455]
[1728311019069,6.6208,151.04,150.95,1.32424981]
[1728311019277,6.6207,151.04,150.95,1.32424981]
[1728311019477,6.6204,151.05,150.96,50.0]
[1728311019699,0.9410962,151.05,150.97,0.12549]
[1728311019899,0.9410962,151.05,150.97,21.44965454]
[1728311020101,0.9410962,151.05,151.01,20.12549]
[1728311020278,0.9410962,151.05,151.02,1.32383599]
[1728311020595,0.9410962,151.05,151.01,20.12549]
[1728311020596,0.9410962,151.05,151.03,1.32385863]
[1728311021103,0.9410962,151.05,151.01,20.12549]
[1728311021279,0.9410962,151.05,151.02,1.32391389]
[1728311021898,0.9410962,151.05,151.01,20.0]
[1728311022305,0.9410962,151.05,150.97,20.0]
[1728311022506,0.9410962,151.05,150.94,72.0283]
[1728311022819,0.9410962,151.05,150.94,56.0455]
[1728311023412,6.6215,151.03,150.94,56.0455]
[1728311023584,7.5618962,151.04,150.95,1.32437499]
[1728311023895,7.5618962,151.04,150.95,21.32437499]
[1728311024504,7.5618962,151.04,150.93,54.75505493]
[1728311024505,6.6224,151.01,150.93,20.0]
[1728311024707,23.0611962,151.04,150.95,20.0]
[1728311025000,6.6215,151.03,150.94,50.0]
[1728311025507,23.0608962,151.04,150.94,50.0]
[1728311025805,23.0608962,151.04,150.96,0.12549]
[1728311025806,6.6213,151.03,150.96,0.12549]
[1728311026103,0.9410962,151.04,150.99,20.25098]
[1728311026599,0.9410962,151.04,150.99,0.12549]
[1728311026809,0.9410962,151.04,150.98,0.12549]
[1728311027101,6.6225,151.0,150.92,50.0]
[1728311027481,6.6225,151.0,150.9,111.41715493]
[1728311027808,0.9410962,151.04,151.02,50.0]
[1728311028009,0.1,151.09,151.05,50.0]
[1728311028298,0.1,151.09,151.03,50.0]
[1728311028877,0.1,151.09,151.04,20.25098]
[1728311029702,0.1,151.09,151.02,20.0]
[1728311029894,0.1,151.09,151.03,1.57463892]
[1728311030095,0.1,151.09,151.04,20.0]
[1728311030327,0.1,151.09,151.05,51.57443273]
[1728311030521,0.1,151.09,151.04,20.0]
[1728311030820,0.1,151.09,151.06,1.32341816]
[1728311031109,0.1,151.09,151.05,0.12549]
[1728311031805,0.1,151.09,151.04,0.12549]
[1728311032007,0.1,151.09,151.02,20.0]
[1728311032182,0.1,151.09,151.02,0.12549]
[1728311032385,0.1,151.09,151.02,20.0]
[1728311033014,0.1,151.09,151.03,1.3237524]
[1728311033192,0.1,151.09,151.03,51.3237524]
[1728311033384,0.1,151.09,151.04,20.0]
[1728311033585,0.1,151.09,151.05,1.32390002]
[1728311033787,0.1,151.09,151.02,20.0]
[1728311034005,0.1,151.09,151.03,1.3237943]
[1728311034888,0.1,151.09,151.04,23.776884]
[1728311035213,0.1,151.09,151.08,23.776884]
[1728311036297,0.1,151.09,151.06,23.776884]
[1728311036514,0.1,151.09,151.07,20.12549]
[1728311036815,0.1,151.09,151.08,23.776884]
[1728311036987,0.1,151.09,151.08,1.32337495]
[1728311037483,0.1,151.09,151.08,25.10025895]
[1728311037688,0.1,151.09,151.08,23.776884]
[1728311038610,0.1,151.09,151.08,45.22581042]
[1728311038782,0.1,151.09,151.08,43.776884]
[1728311039102,0.1,151.09,151.08,59.44908059]
[1728311039290,0.1,151.09,151.08,60.7722939]
[1728311039690,0.1,151.09,151.08,60.77229426]
[1728311040007,0.1,151.09,151.08,60.7722917]
[1728311040599,0.1,151.09,151.08,109.57457059]
[1728311040799,0.1,151.09,151.08,101.21879135]
[1728311041011,78.51152482,151.17,151.11,0.12549]
[1728311041197,0.1,151.29,151.11,0.12549]
[1728311041198,0.1,151.29,151.19,20.12549]
[1728311041509,6.7099,151.29,151.21,61.42505493]
[1728311041704,6.7099,151.29,151.19,20.12549]
[1728311041705,0.1,151.29,151.19,20.12549]
[1728311041899,0.1,151.29,151.21,0.12549]
[1728311042100,0.1,151.29,151.23,0.12549]
[1728311042308,0.1,151.29,151.27,74.88054493]
[1728311042609,0.39125349,151.32,151.28,20.12549]
[1728311042808,0.39125349,151.32,151.23,50.0]
[1728311043009,0.39125349,151.32,151.24,20.0]
[1728311043183,0.39125349,151.32,151.28,33.56532259]
[1728311043384,0.39125349,151.32,151.29,71.32128057]
[1728311043592,0.39125349,151.32,151.29,70.0]
[1728311043812,0.39125349,151.32,151.25,50.0]
[1728311044031,0.39125349,151.32,151.22,50.0]
[1728311044309,0.39125349,151.32,151.26,50.0]
[1728311044527,0.39125349,151.32,151.28,50.0]
[1728311044889,0.39125349,151.32,151.29,1.32136146]
[1728311045106,0.39125349,151.32,151.28,50.0]
[1728311045510,0.39125349,151.32,151.26,20.0]
[1728311045817,0.39125349,151.32,151.29,23.776884]
[1728311046397,0.39125349,151.32,151.31,23.776884]
[1728311046816,0.39125349,151.32,151.28,20.0]
[1728311047021,0.39125349,151.32,151.23,54.54261659]
[1728311047022,6.6089,151.31,151.23,50.0]
[1728311047320,6.6111,151.26,151.17,50.0]
[1728311047501,0.39125349,151.32,151.19,50.0]
[1728311047698,0.39125349,151.32,151.21,50.0]
[1728311048392,0.39125349,151.32,151.22,1.32202558]
[1728311048612,0.39125349,151.32,151.27,50.0]
[1728311048796,0.39125349,151.32,151.27,59.14410832]
[1728311049121,0.39125349,151.32,151.28,50.0]
[1728311049313,0.39125349,151.32,151.3,50.0]
[1728311049499,0.39125349,151.32,151.31,21.44677631]
[1728311049695,0.8610329,151.34,151.33,70.12549]
[1728311049920,0.8610329,151.34,151.33,70.25098]
[1728311050414,0.8610329,151.34,151.33,70.12549]
[1728311050614,0.8610329,151.34,151.33,70.25098]
[1728311050793,0.8610329,151.34,151.33,20.12549]
[1728311051114,0.8610329,151.34,151.33,70.25098]
[1728311051314,81.31243668,151.36,151.35,70.25098]
[1728311051505,81.18703668,151.36,151.35,124.79359659]
[1728311052019,0.1,151.38,151.37,70.12549]
[1728311052215,0.1,151.38,151.37,70.0]
[1728311052392,0.1,151.38,151.37,70.12549]
[1728311052856,0.1,151.38,151.37,71.44569459]
[1728311053120,0.8610329,151.49,151.37,71.44569459]
[1728311053121,0.7176688,151.49,151.41,50.0]
[1728311053615,0.7176688,151.49,151.42,1.32035819]
[1728311053800,0.7176688,151.49,151.43,51.3203365]
[1728311054001,0.7176688,151.49,151.4,70.12549]
[1728311054397,0.7176688,151.49,151.4,20.0]
[1728311054719,0.7176688,151.49,151.39,0.12549]
[1728311054926,0.7176688,151.49,151.39,0.25098]
[1728311055094,0.7176688,151.49,151.39,50.25098]
[1728311055290,0.7176688,151.49,151.39,0.12549]
[1728311055490,6.6019,151.48,151.39,1.32044851]
[1728311055693,6.6019,151.48,151.38,20.0]
[1728311055889,6.602,151.47,151.38,20.0]
[1728311056121,6.6032,151.45,151.37,20.0]
[1728311056319,0.7176688,151.49,151.41,50.0]
[1728311056699,0.7176688,151.49,151.45,20.0]
[1728311057225,0.7176688,151.49,151.46,51.32010302]
[1728311057518,0.7176688,151.49,151.46,23.776884]
[1728311058224,0.7176688,151.49,151.42,20.0]
[1728311058722,0.7176688,151.49,151.4,50.0]
[1728311059296,0.7176688,151.49,151.4,8.89671249]
[1728311059622,0.7176688,151.49,151.41,1.32024596]
[1728311059825,0.7176688,151.49,151.41,20.0]
[1728311059995,0.7176688,151.49,151.39,20.0]
[1728311060192,15.6938,151.47,151.39,20.0]
[1728311060409,6.2575,151.46,151.38,50.0]
[1728311060802,6.2575,151.46,151.4,50.0]
[1728311060996,6.2575,151.46,151.41,1.32041635]
[1728311061204,6.2575,151.46,151.38,50.0]
[1728311061416,6.2575,151.46,151.39,55.86303667]
[1728311061605,6.2575,151.46,151.39,54.54261659]
[1728311061817,6.2575,151.46,151.4,21.32043272]
[1728311061997,6.2575,151.46,151.4,20.0]
[1728311061998,6.05924817,151.46,151.4,20.0]
[1728311062522,6.05924817,151.46,151.41,1.32045436]
[1728311062704,6.05924817,151.46,151.39,20.0]
[1728311062910,12.66184817,151.46,151.37,20.0]
[1728311063220,6.05924817,151.46,151.34,50.0]
[1728311063394,6.05924817,151.46,151.33,54.54261659]
[1728311063395,6.05924817,151.46,151.36,50.0]
[1728311063895,6.05924817,151.46,151.36,104.54261659]
[1728311064607,6.05924817,151.46,151.39,20.0]
[1728311065006,6.05924817,151.46,151.36,54.54261659]
[1728311065007,6.05924817,151.46,151.37,70.0]
[1728311065409,6.05924817,151.46,151.36,54.54261659]
[1728311065410,15.6938,151.47,151.4,20.0]
[1728311065709,15.6938,151.47,151.38,1.32051491]
[1728311065710,0.7176688,151.49,151.46,50.0]
[1728311065911,0.7176688,151.49,151.47,20.0]
[1728311066111,0.7176688,151.49,151.48,23.776884]
[1728311066423,0.7176688,151.49,151.48,95.22217885]
[1728311066733,0.7176688,151.49,151.48,93.902374]
[1728311066921,0.7176688,151.49,151.48,93.776884]
[1728311067128,0.7176688,151.49,151.48,43.776884]
[1728311067512,0.7176688,151.49,151.46,20.0]
[1728311067722,0.7176688,151.49,151.47,23.776884]
[1728311069022,0.7176688,151.49,151.46,20.0]
[1728311069426,0.7176688,151.49,151.39,54.54261659]
[1728311069800,0.7176688,151.49,151.4,50.0]
[1728311070000,0.7176688,151.49,151.41,1.32021217]
[1728311070201,0.7176688,151.49,151.42,104.54261659]
[1728311070505,0.7176688,151.49,151.43,50.0]
[1728311070805,0.7176688,151.49,151.47,20.0]
[1728311071006,0.7176688,151.49,151.48,1.31992859]
[1728311071218,0.7176688,151.49,151.48,43.902374]
[1728311071506,0.7176688,151.49,151.48,43.776884]
[1728311072318,0.7176688,151.49,151.43,50.0]
[1728311072626,0.7176688,151.49,151.44,20.0]
[1728311072804,0.7176688,151.49,151.45,51.32010656]
[1728311073004,0.7176688,151.49,151.46,20.0]
[1728311073510,0.7176688,151.49,151.44,20.0]
[1728311073713,0.7176688,151.49,151.41,50.0]
[1728311073912,0.7176688,151.49,151.42,1.32037143]
[1728311074107,21.4831,151.48,151.39,54.54261659]
[1728311074333,21.4831,151.48,151.4,50.0]
[1728311074910,21.4831,151.48,151.41,1.3203817]
[1728311075441,0.7176688,151.49,151.42,50.0]
[1728311075728,0.7176688,151.49,151.43,20.0]
[1728311075914,0.7176688,151.49,151.44,23.776884]
[1728311076116,0.7176688,151.49,151.38,6.67]
[1728311076117,0.7176688,151.49,151.36,207.52922524]
[1728311076419,0.7176688,151.49,151.39,50.0]
[1728311076630,0.7176688,151.49,151.43,50.0]
[1728311076813,0.7176688,151.49,151.41,50.0]
[1728311077006,0.7176688,151.49,151.39,104.54261659]
[1728311077222,7.3190688,151.49,151.37,58.89671249]
[1728311077451,0.7176688,151.49,151.37,58.89671249]
[1728311077933,6.6016,151.48,151.37,58.89671249]
[1728311078142,0.7176688,151.49,151.38,1.32067535]
[1728311078315,6.6018,151.48,151.37,50.0]
[1728311078514,0.7176688,151.49,151.4,50.0]
[1728311078729,0.7176688,151.49,151.39,54.54261659]
[1728311078929,0.7176688,151.49,151.4,50.0]
[1728311079115,0.7176688,151.49,151.39,54.54261659]
[1728311079440,6.6019,151.48,151.37,20.0]
[1728311079619,6.6024,151.46,151.37,20.0]
[1728311079824,7.3191688,151.49,151.37,20.0]
[1728311080015,7.3191688,151.49,151.39,20.0]
[1728311080335,7.3191688,151.49,151.4,50.0]
[1728311080336,0.7176688,151.49,151.4,50.0]
[1728311080527,0.7176688,151.49,151.39,20.0]
[1728311080832,0.7176688,151.49,151.4,1.32062996]
[1728311080833,6.6028,151.45,151.4,1.32062996]
[1728311081039,22.4737,151.44,151.37,50.0]
[1728311081335,22.4737,151.44,151.38,1.32056098]
[1728311081537,22.4737,151.44,151.37,50.0]
[1728311081742,22.4737,151.44,151.38,1.32063866]
[1728311081938,22.4737,151.44,151.37,50.0]
[1728311082245,22.4737,151.44,151.34,50.0]
[1728311082716,22.4737,151.44,151.31,20.43760589]
[1728311082717,22.4737,151.44,151.35,1.3208922]
[1728311082920,22.4737,151.44,151.33,6.90312547]
[1728311083137,0.12549,151.43,151.33,6.90312547]
[1728311083429,0.12549,151.43,151.29,50.0]
[1728311083635,6.6051,151.4,151.3,8.22644389]
[1728311083830,22.4737,151.44,151.33,50.0]
[1728311084218,6.6039,151.43,151.33,50.0]
[1728311084437,22.4737,151.44,151.3,61.44772386]
[1728311084617,22.4737,151.44,151.3,120.34443635]
[1728311084947,16.5067,151.46,151.3,6.90510727]
[1728311084948,6.6063,151.37,151.3,6.90510727]
[1728311085120,0.12549,151.41,151.26,50.0]
[1728311085449,6.6046,151.41,151.29,50.0]
[1728311085619,6.6051,151.4,151.29,50.0]
[1728311085814,23.0727,151.42,151.29,50.0]
[1728311086019,6.6066,151.37,151.26,6.90641562]
[1728311086232,23.0727,151.42,151.27,51.32156937]
[1728311086441,6.6059,151.38,151.27,58.89671249]
[1728311086620,6.6065,151.37,151.28,1.3214864]
[1728311086820,6.6065,151.37,151.26,6.90641562]
[1728311086821,6.6067,151.36,151.26,6.90641562]
[1728311087151,6.6075,151.35,151.26,6.90641562]
[1728311087317,22.7847,151.34,151.26,6.90641562]
[1728311087527,22.7847,151.34,151.26,56.90641562]
[1728311087747,29.3923,151.34,151.23,50.0]
[1728311088049,6.6081,151.33,151.22,8.89671249]
[1728311088245,6.6098,151.29,151.24,6.90799505]
[1728311088539,6.6098,151.29,151.19,58.56221387]